[Event "*** MasterClass Titled Tuesday Blitz"]
[Site "Chess.com"]
[Date "2017.12.12"]
[Round "2"]
[White "ChessWarrior7197"]
[Black "ChainsOfFantasia"]
[Result "1/2-1/2"]
[WhiteElo "2642"]
[BlackElo "2490"]
[TimeControl "180+2"]
[EndTime "13:25:03 PST"]
[Termination "Game drawn - insufficient material"]

1. d4 {[%clk 0:03:01.9]} 1... Nf6 {[%clk 0:03:00.8]} 2. c4 {[%clk 0:03:02.5]}
2... e6 {[%clk 0:03:02]} 3. Nf3 {[%clk 0:03:03]} 3... d5 {[%clk 0:03:02.9]} 4.
Nc3 {[%clk 0:03:03.1]} 4... Be7 {[%clk 0:03:03.3]} 5. Bg5 {[%clk 0:03:03.2]}
5... h6 {[%clk 0:03:04.6]} 6. Bh4 {[%clk 0:03:01.4]} 6... O-O {[%clk 0:03:05.6]}
7. e3 {[%clk 0:03:02.3]} 7... b6 {[%clk 0:03:05.1]} 8. cxd5 {[%clk 0:03:02]}
8... Nxd5 {[%clk 0:03:05.5]} 9. Bxe7 {[%clk 0:03:02.5]} 9... Qxe7 {[%clk
0:03:07.4]} 10. Nxd5 {[%clk 0:03:02.5]} 10... exd5 {[%clk 0:03:09.3]} 11. Bd3
{[%clk 0:03:03.6]} 11... c5 {[%clk 0:02:59.4]} 12. O-O {[%clk 0:03:04]} 12...
Bb7 {[%clk 0:02:57.4]} 13. Rc1 {[%clk 0:03:04]} 13... Nd7 {[%clk 0:02:58.1]} 14.
b3 {[%clk 0:03:00.4]} 14... Rac8 {[%clk 0:02:49.8]} 15. Qd2 {[%clk 0:03:00.2]}
15... Rfd8 {[%clk 0:02:50.3]} 16. dxc5 {[%clk 0:03:00.5]} 16... Nxc5 {[%clk
0:02:44.9]} 17. Nd4 {[%clk 0:02:59.3]} 17... Ne6 {[%clk 0:02:43.1]} 18. Bf5
{[%clk 0:02:53.3]} 18... Qf6 {[%clk 0:02:27.2]} 19. Nxe6 {[%clk 0:02:32.1]}
19... fxe6 {[%clk 0:02:29.1]} 20. Bg4 {[%clk 0:02:31.3]} 20... Rxc1 {[%clk
0:01:35]} 21. Rxc1 {[%clk 0:02:29.6]} 21... d4 {[%clk 0:01:36]} 22. exd4 {[%clk
0:01:59.5]} 22... h5 {[%clk 0:01:36.6]} 23. Bxh5 {[%clk 0:01:52.5]} 23... Rxd4
{[%clk 0:01:37.5]} 24. Qe2 {[%clk 0:01:49.5]} 24... Qg5 {[%clk 0:01:30.8]} 25.
f4 {[%clk 0:01:12.5]} 25... Rxf4 {[%clk 0:01:30.6]} 26. Rc3 {[%clk 0:00:50]}
26... Kh7 {[%clk 0:01:08.8]} 27. h3 {[%clk 0:00:21.1]} 27... Bxg2 {[%clk
0:00:44.1]} 28. Bg4 {[%clk 0:00:21.9]} 28... Bd5 {[%clk 0:00:43.2]} 29. Kh2
{[%clk 0:00:18.1]} 29... Re4 {[%clk 0:00:41.1]} 30. Qf2 {[%clk 0:00:14.4]} 30...
Qe5+ {[%clk 0:00:40.6]} 31. Qg3 {[%clk 0:00:15.5]} 31... Qxg3+ {[%clk
0:00:21.6]} 32. Kxg3 {[%clk 0:00:17.4]} 32... Re1 {[%clk 0:00:21.9]} 33. Rc7
{[%clk 0:00:17.9]} 33... a5 {[%clk 0:00:22.1]} 34. Re7 {[%clk 0:00:15.4]} 34...
Ra1 {[%clk 0:00:21.3]} 35. Bxe6 {[%clk 0:00:14.9]} 35... Bxe6 {[%clk 0:00:22.5]}
36. Rxe6 {[%clk 0:00:16.8]} 36... b5 {[%clk 0:00:23.9]} 37. Re5 {[%clk
0:00:16.5]} 37... Rxa2 {[%clk 0:00:25.2]} 38. Rxb5 {[%clk 0:00:17.7]} 38... Ra3
{[%clk 0:00:25.1]} 39. Kg4 {[%clk 0:00:19]} 39... a4 {[%clk 0:00:26.4]} 40. bxa4
{[%clk 0:00:20.9]} 40... Rxa4+ {[%clk 0:00:28.3]} 41. Kg3 {[%clk 0:00:22.5]}
41... Kh6 {[%clk 0:00:29.7]} 42. Rb3 {[%clk 0:00:22.6]} 42... g6 {[%clk
0:00:30.4]} 43. Rf3 {[%clk 0:00:23.9]} 43... Rb4 {[%clk 0:00:31.5]} 44. Re3
{[%clk 0:00:24.7]} 44... Ra4 {[%clk 0:00:32.6]} 45. Kf3 {[%clk 0:00:26.1]} 45...
Rb4 {[%clk 0:00:33.8]} 46. Kg3 {[%clk 0:00:27.6]} 46... Ra4 {[%clk 0:00:35.2]}
47. Rf3 {[%clk 0:00:29.1]} 47... Rb4 {[%clk 0:00:36.5]} 48. Rf8 {[%clk
0:00:30.5]} 48... Kh7 {[%clk 0:00:36.7]} 49. Rf7+ {[%clk 0:00:31.4]} 49... Kh6
{[%clk 0:00:38]} 50. Rf3 {[%clk 0:00:33.3]} 50... Rc4 {[%clk 0:00:39.1]} 51. Re3
{[%clk 0:00:34.6]} 51... Rc1 {[%clk 0:00:40.1]} 52. Rd3 {[%clk 0:00:35.5]} 52...
Rg1+ {[%clk 0:00:41]} 53. Kf2 {[%clk 0:00:36.8]} 53... Ra1 {[%clk 0:00:42.9]}
54. Kg3 {[%clk 0:00:38.2]} 54... Ra2 {[%clk 0:00:44.1]} 55. Rb3 {[%clk 0:00:39]}
55... Kh5 {[%clk 0:00:44.4]} 56. Rb5+ {[%clk 0:00:39.7]} 56... g5 {[%clk
0:00:45.5]} 57. Rb3 {[%clk 0:00:40.6]} 57... Rc2 {[%clk 0:00:46.2]} 58. Ra3
{[%clk 0:00:41.2]} 58... Rc1 {[%clk 0:00:47.1]} 59. Rf3 {[%clk 0:00:42]} 59...
Rg1+ {[%clk 0:00:48]} 60. Kf2 {[%clk 0:00:43.2]} 60... Rh1 {[%clk 0:00:48.6]}
61. Kg2 {[%clk 0:00:44]} 61... Rc1 {[%clk 0:00:49.5]} 62. Rf8 {[%clk 0:00:44.5]}
62... Rc2+ {[%clk 0:00:48.4]} 63. Kg3 {[%clk 0:00:45.8]} 63... Rc3+ {[%clk
0:00:49.9]} 64. Kh2 {[%clk 0:00:47.1]} 64... Kg6 {[%clk 0:00:50.6]} 65. Rg8+
{[%clk 0:00:47.7]} 65... Kf5 {[%clk 0:00:51.8]} 66. Rf8+ {[%clk 0:00:49]} 66...
Kg6 {[%clk 0:00:53.3]} 67. Rf2 {[%clk 0:00:49.2]} 67... Kh5 {[%clk 0:00:53.6]}
68. Rf7 {[%clk 0:00:47.7]} 68... g4 {[%clk 0:00:51.6]} 69. hxg4+ {[%clk
0:00:38.6]} 69... Kxg4 {[%clk 0:00:52.4]} 70. Rg7+ {[%clk 0:00:39.8]} 70... Kh5
{[%clk 0:00:53.6]} 71. Rg2 {[%clk 0:00:40]} 71... Rc4 {[%clk 0:00:53.8]} 72. Rg3
{[%clk 0:00:40.9]} 72... Rh4+ {[%clk 0:00:55]} 73. Kg2 {[%clk 0:00:41.6]} 73...
Rg4 {[%clk 0:00:56.3]} 74. Kh3 {[%clk 0:00:42.1]} 74... Rxg3+ {[%clk 0:00:56.5]}
75. Kxg3 {[%clk 0:00:44]} 1/2-1/2

[Event "*** MasterClass Titled Tuesday Blitz"]
[Site "Chess.com"]
[Date "2017.12.12"]
[Round "2"]
[White "maciek_92"]
[Black "JSMastropiero"]
[Result "1-0"]
[WhiteElo "2500"]
[BlackElo "2302"]
[TimeControl "180+2"]
[EndTime "13:25:41 PST"]
[Termination "maciek_92 won by checkmate"]

1. c4 {[%clk 0:03:00.1]} 1... e6 {[%clk 0:03:00.5]} 2. Nc3 {[%clk 0:03:00.5]}
2... d5 {[%clk 0:03:01.6]} 3. d4 {[%clk 0:03:01.1]} 3... Nf6 {[%clk 0:03:02.4]}
4. Bg5 {[%clk 0:03:00]} 4... Be7 {[%clk 0:03:02.9]} 5. e3 {[%clk 0:02:58.9]}
5... Nbd7 {[%clk 0:03:02.2]} 6. cxd5 {[%clk 0:02:58.1]} 6... exd5 {[%clk
0:02:59]} 7. Bd3 {[%clk 0:02:57.9]} 7... c6 {[%clk 0:02:59]} 8. Nge2 {[%clk
0:02:58.5]} 8... h6 {[%clk 0:02:58.8]} 9. Bh4 {[%clk 0:02:59.2]} 9... Nh5 {[%clk
0:02:59.5]} 10. Bg3 {[%clk 0:02:59.4]} 10... Nxg3 {[%clk 0:02:58]} 11. hxg3
{[%clk 0:03:00.1]} 11... Nf6 {[%clk 0:02:58]} 12. Qc2 {[%clk 0:02:58.4]} 12...
Be6 {[%clk 0:02:55.1]} 13. Nf4 {[%clk 0:02:53.8]} 13... Qd7 {[%clk 0:02:51.9]}
14. a3 {[%clk 0:02:43.9]} 14... Bd6 {[%clk 0:02:38.5]} 15. Nxe6 {[%clk 0:02:43]}
15... Qxe6 {[%clk 0:02:40.4]} 16. O-O-O {[%clk 0:02:37.8]} 16... g6 {[%clk
0:02:37.3]} 17. Kb1 {[%clk 0:02:36.9]} 17... O-O-O {[%clk 0:02:36.1]} 18. Na4
{[%clk 0:02:35.4]} 18... Kb8 {[%clk 0:02:36.2]} 19. b4 {[%clk 0:02:33.6]} 19...
h5 {[%clk 0:02:29.2]} 20. Ka1 {[%clk 0:02:31.8]} 20... Ka8 {[%clk 0:02:27.9]}
21. Rb1 {[%clk 0:02:29.6]} 21... Ne4 {[%clk 0:02:17.6]} 22. Rb2 {[%clk
0:02:18.5]} 22... g5 {[%clk 0:02:10.7]} 23. Rhb1 {[%clk 0:02:19]} 23... h4
{[%clk 0:02:00]} 24. b5 {[%clk 0:02:16.3]} 24... cxb5 {[%clk 0:01:54.2]} 25.
Rxb5 {[%clk 0:02:17]} 25... Rd7 {[%clk 0:01:53.8]} 26. g4 {[%clk 0:02:12.2]}
26... Rc7 {[%clk 0:01:36]} 27. Qb2 {[%clk 0:02:03.2]} 27... Qe7 {[%clk
0:01:29.3]} 28. Rxd5 {[%clk 0:01:53.3]} 28... Bxa3 {[%clk 0:01:28.3]} 29. Qa2
{[%clk 0:01:36.5]} 29... Nc3 {[%clk 0:01:26]} 30. Nxc3 {[%clk 0:01:34.5]} 30...
Rxc3 {[%clk 0:01:27.9]} 31. Rdb5 {[%clk 0:01:28.7]} 31... b6 {[%clk 0:01:00.3]}
32. Be2 {[%clk 0:01:20]} 32... Rh6 {[%clk 0:00:48.8]} 33. Bf3+ {[%clk 0:01:20]}
33... Kb8 {[%clk 0:00:50]} 34. R5b3 {[%clk 0:01:16.9]} 34... Rxb3 {[%clk
0:00:44.2]} 35. Qxb3 {[%clk 0:01:17.5]} 35... h3 {[%clk 0:00:42.7]} 36. Qd5
{[%clk 0:01:12.3]} 36... a5 {[%clk 0:00:21.4]} 37. Qa8+ {[%clk 0:01:12.4]} 37...
Kc7 {[%clk 0:00:22.6]} 38. Qb7+ {[%clk 0:01:09.7]} 38... Kd8 {[%clk 0:00:22.8]}
39. Qb8+ {[%clk 0:01:09.1]} 39... Kd7 {[%clk 0:00:24.1]} 40. gxh3 {[%clk
0:01:06.7]} 40... Rd6 {[%clk 0:00:21.5]} 41. Rxb6 {[%clk 0:01:04.2]} 41... Rxb6
{[%clk 0:00:21.9]} 42. Qxb6 {[%clk 0:01:05]} 42... Bb4 {[%clk 0:00:23.2]} 43.
Bc6+ {[%clk 0:00:59.9]} 43... Kc8 {[%clk 0:00:24.2]} 44. Qa6+ {[%clk 0:00:58.3]}
44... Kc7 {[%clk 0:00:23.8]} 45. e4 {[%clk 0:00:57.6]} 45... Qd6 {[%clk
0:00:22.3]} 46. Qb7+ {[%clk 0:00:55.6]} 46... Kd8 {[%clk 0:00:23.5]} 47. Bd5
{[%clk 0:00:54.9]} 47... Qf4 {[%clk 0:00:22.4]} 48. Qb6+ {[%clk 0:00:53.3]}
48... Ke7 {[%clk 0:00:22.7]} 49. Qb7+ {[%clk 0:00:52.1]} 49... Kf8 {[%clk
0:00:23.9]} 50. Qc8+ {[%clk 0:00:53]} 50... Kg7 {[%clk 0:00:24.9]} 51. Qc2
{[%clk 0:00:54.2]} 51... Qh2 {[%clk 0:00:20.4]} 52. Bb3 {[%clk 0:00:48.2]} 52...
Qxh3 {[%clk 0:00:20.5]} 53. Ka2 {[%clk 0:00:47.3]} 53... Qxg4 {[%clk 0:00:19.4]}
54. Qd3 {[%clk 0:00:37.4]} 54... Qf4 {[%clk 0:00:20.3]} 55. Qe2 {[%clk
0:00:33.4]} 55... Qc1 {[%clk 0:00:20.9]} 56. Qc2 {[%clk 0:00:23.6]} 56... Qe1
{[%clk 0:00:21.7]} 57. e5 {[%clk 0:00:23]} 57... Bc3 {[%clk 0:00:22.7]} 58. Bxf7
{[%clk 0:00:11.4]} 58... Kxf7 {[%clk 0:00:19.1]} 59. Qh7+ {[%clk 0:00:12.8]}
59... Ke6 {[%clk 0:00:20]} 60. Qg8+ {[%clk 0:00:14.2]} 60... Kf5 {[%clk
0:00:21]} 61. Qc8+ {[%clk 0:00:12.7]} 61... Ke4 {[%clk 0:00:20.5]} 62. Qg4+
{[%clk 0:00:13.2]} 62... Kd3 {[%clk 0:00:20.9]} 63. Qf5+ {[%clk 0:00:09.4]}
63... Kd2 {[%clk 0:00:21]} 64. Qxg5+ {[%clk 0:00:10.2]} 64... Kc2 {[%clk
0:00:22.2]} 65. Qf5+ {[%clk 0:00:09.8]} 65... Kc1 {[%clk 0:00:22.6]} 66. Qf4+
{[%clk 0:00:10.6]} 66... Bd2 {[%clk 0:00:23.4]} 67. Qf3 {[%clk 0:00:09.7]} 67...
Kc2 {[%clk 0:00:21.2]} 68. Qb3+ {[%clk 0:00:10.3]} 68... Kc1 {[%clk 0:00:22]}
69. Qb1# {[%clk 0:00:11.2]} 1-0

[Event "*** MasterClass Titled Tuesday Blitz"]
[Site "Chess.com"]
[Date "2017.12.12"]
[Round "2"]
[White "Enzy63"]
[Black "r31415"]
[Result "0-1"]
[WhiteElo "2084"]
[BlackElo "2202"]
[TimeControl "180+2"]
[EndTime "13:26:19 PST"]
[Termination "r31415 won on time"]

1. d4 {[%clk 0:03:01.9]} 1... e6 {[%clk 0:03:00.1]} 2. Nf3 {[%clk 0:03:02.3]}
2... Nf6 {[%clk 0:02:59.6]} 3. g3 {[%clk 0:03:03.1]} 3... b6 {[%clk 0:02:59.4]}
4. Bg2 {[%clk 0:03:04.4]} 4... Bb7 {[%clk 0:02:58.3]} 5. O-O {[%clk 0:03:05.9]}
5... Be7 {[%clk 0:02:59.1]} 6. c4 {[%clk 0:03:07.1]} 6... O-O {[%clk 0:02:58.7]}
7. Nc3 {[%clk 0:03:08.5]} 7... c5 {[%clk 0:02:56.3]} 8. d5 {[%clk 0:03:08.1]}
8... exd5 {[%clk 0:02:50]} 9. cxd5 {[%clk 0:03:10]} 9... d6 {[%clk 0:02:50.8]}
10. e4 {[%clk 0:03:07.2]} 10... Nbd7 {[%clk 0:02:49.1]} 11. h3 {[%clk
0:03:07.2]} 11... Re8 {[%clk 0:02:49.5]} 12. Re1 {[%clk 0:03:07.3]} 12... Bf8
{[%clk 0:02:49.5]} 13. Bf4 {[%clk 0:03:05.1]} 13... a6 {[%clk 0:02:46.9]} 14. a4
{[%clk 0:03:05]} 14... Qc7 {[%clk 0:02:40.1]} 15. Rc1 {[%clk 0:03:01.1]} 15...
Rad8 {[%clk 0:02:21.1]} 16. g4 {[%clk 0:02:45.2]} 16... Ne5 {[%clk 0:01:47]} 17.
Nxe5 {[%clk 0:02:35.4]} 17... dxe5 {[%clk 0:01:46.8]} 18. Be3 {[%clk 0:02:37]}
18... Rb8 {[%clk 0:01:28.7]} 19. Bf1 {[%clk 0:02:32.6]} 19... Rec8 {[%clk
0:01:21.8]} 20. Bc4 {[%clk 0:02:29.2]} 20... Ne8 {[%clk 0:01:21.7]} 21. b3
{[%clk 0:02:22.5]} 21... Nd6 {[%clk 0:01:13.1]} 22. Be2 {[%clk 0:02:19.3]} 22...
Re8 {[%clk 0:01:13.6]} 23. f3 {[%clk 0:02:18.9]} 23... Ra8 {[%clk 0:01:05.9]}
24. Qd2 {[%clk 0:02:13.3]} 24... Bc8 {[%clk 0:01:06.7]} 25. Bf1 {[%clk
0:01:37.3]} 25... Qb7 {[%clk 0:01:07.1]} 26. Qf2 {[%clk 0:01:36]} 26... Bd7
{[%clk 0:01:06.9]} 27. Ra1 {[%clk 0:01:27.1]} 27... Rac8 {[%clk 0:01:03.9]} 28.
Ra2 {[%clk 0:01:23.2]} 28... f6 {[%clk 0:01:04.5]} 29. Rea1 {[%clk 0:01:23.6]}
29... g6 {[%clk 0:00:54.3]} 30. Kh1 {[%clk 0:01:00.1]} 30... Nf7 {[%clk
0:00:52.6]} 31. h4 {[%clk 0:00:57]} 31... f5 {[%clk 0:00:44.4]} 32. gxf5 {[%clk
0:00:56.2]} 32... gxf5 {[%clk 0:00:46.3]} 33. exf5 {[%clk 0:00:48.4]} 33... Bxf5
{[%clk 0:00:42.7]} 34. Ne4 {[%clk 0:00:49.9]} 34... Be7 {[%clk 0:00:33.5]} 35.
Bc4 {[%clk 0:00:46.3]} 35... Nd6 {[%clk 0:00:25.5]} 36. Nxd6 {[%clk 0:00:41.7]}
36... Bxd6 {[%clk 0:00:26.5]} 37. Rg1+ {[%clk 0:00:40.2]} 37... Kh8 {[%clk
0:00:27.7]} 38. Bg5 {[%clk 0:00:40.8]} 38... Rf8 {[%clk 0:00:19.5]} 39. Qe3
{[%clk 0:00:33.5]} 39... Bg6 {[%clk 0:00:19.2]} 40. Rh2 {[%clk 0:00:25.4]} 40...
Bh5 {[%clk 0:00:19.6]} 41. Rh3 {[%clk 0:00:24.1]} 41... Qd7 {[%clk 0:00:19.1]}
42. Rhg3 {[%clk 0:00:20.6]} 42... b5 {[%clk 0:00:15.3]} 43. axb5 {[%clk
0:00:19.1]} 43... axb5 {[%clk 0:00:17.2]} 44. Bh6 {[%clk 0:00:16.6]} 44... Rg8
{[%clk 0:00:13.5]} 45. Rxg8+ {[%clk 0:00:10.9]} 45... Rxg8 {[%clk 0:00:15.4]}
46. Rxg8+ {[%clk 0:00:10.4]} 46... Kxg8 {[%clk 0:00:17.3]} 47. Qg5+ {[%clk
0:00:08.7]} 47... Bg6 {[%clk 0:00:18.8]} 48. Bf1 {[%clk 0:00:09.5]} 48... Qe7
{[%clk 0:00:03.1]} 49. Qg4 {[%clk 0:00:10.6]} 49... Kh8 {[%clk 0:00:02.5]} 50.
h5 {[%clk 0:00:11.3]} 50... Be8 {[%clk 0:00:03.5]} 51. Bg5 {[%clk 0:00:11.8]}
51... Qf7 {[%clk 0:00:04.8]} 52. h6 {[%clk 0:00:09.8]} 52... Qh5+ {[%clk
0:00:05.8]} 53. Qxh5 {[%clk 0:00:11.1]} 53... Bxh5 {[%clk 0:00:07.7]} 54. Kg2
{[%clk 0:00:12.2]} 54... Be8 {[%clk 0:00:07.6]} 55. Bf6+ {[%clk 0:00:07.7]}
55... Kg8 {[%clk 0:00:08.8]} 56. Kf2 {[%clk 0:00:04.2]} 56... Kf7 {[%clk
0:00:07.7]} 57. Bg5 {[%clk 0:00:05.2]} 57... Kg6 {[%clk 0:00:06.4]} 58. Be3
{[%clk 0:00:06.3]} 58... Kh5 {[%clk 0:00:04.7]} 59. Bh3 {[%clk 0:00:05.4]} 59...
c4 {[%clk 0:00:03.8]} 60. bxc4 {[%clk 0:00:05.4]} 60... bxc4 {[%clk 0:00:05.7]}
61. Bf5 {[%clk 0:00:05.8]} 61... Bg6 {[%clk 0:00:05.6]} 62. Bg4+ {[%clk
0:00:06.8]} 62... Kh4 {[%clk 0:00:06.7]} 63. Kg2 {[%clk 0:00:07.9]} 63... e4
{[%clk 0:00:06.4]} 64. f4 {[%clk 0:00:07.8]} 64... Be7 {[%clk 0:00:05.7]} 65.
Be6 {[%clk 0:00:07.3]} 65... Kh5 {[%clk 0:00:06.7]} 66. d6 {[%clk 0:00:06.9]}
66... Bxd6 {[%clk 0:00:05.2]} 67. Bxc4 {[%clk 0:00:08.4]} 67... Bf5 {[%clk
0:00:04.7]} 68. Bf7+ {[%clk 0:00:06.5]} 68... Kxh6 {[%clk 0:00:05.9]} 69. Kg3
{[%clk 0:00:04.9]} 69... Kg7 {[%clk 0:00:05.5]} 70. Bh5 {[%clk 0:00:05.7]} 70...
Be7 {[%clk 0:00:06.2]} 71. Bg4 {[%clk 0:00:05.2]} 71... Kg6 {[%clk 0:00:04.7]}
72. Be2 {[%clk 0:00:02.2]} 72... h5 {[%clk 0:00:02.7]} 73. Bf1 {[%clk
0:00:02.3]} 73... h4+ {[%clk 0:00:03.8]} 74. Kh2 {[%clk 0:00:03.1]} 74... Bg4
{[%clk 0:00:05]} 75. Bc4 {[%clk 0:00:02.1]} 75... Kf5 {[%clk 0:00:05]} 0-1

[Event "*** MasterClass Titled Tuesday Blitz"]
[Site "Chess.com"]
[Date "2017.12.12"]
[Round "2"]
[White "Oleksandr_Bortnyk"]
[Black "vanea_03"]
[Result "1/2-1/2"]
[WhiteElo "2825"]
[BlackElo "2538"]
[TimeControl "180+2"]
[EndTime "13:26:23 PST"]
[Termination "Game drawn - insufficient material"]

1. e4 {[%clk 0:03:01]} 1... c6 {[%clk 0:03:01.2]} 2. Nc3 {[%clk 0:03:00.4]} 2...
d5 {[%clk 0:03:03.1]} 3. Nf3 {[%clk 0:03:00.3]} 3... Bg4 {[%clk 0:03:03.9]} 4.
h3 {[%clk 0:03:00.5]} 4... Bxf3 {[%clk 0:03:05.1]} 5. Qxf3 {[%clk 0:03:01.4]}
5... e6 {[%clk 0:03:06.5]} 6. d3 {[%clk 0:03:02.4]} 6... Nd7 {[%clk 0:03:07.2]}
7. Be2 {[%clk 0:03:03.4]} 7... Bb4 {[%clk 0:03:02.9]} 8. O-O {[%clk 0:03:01.4]}
8... Ne7 {[%clk 0:03:02.8]} 9. Qg3 {[%clk 0:02:59.4]} 9... Ng6 {[%clk
0:03:01.5]} 10. Nd1 {[%clk 0:02:55.9]} 10... O-O {[%clk 0:02:59.2]} 11. c3
{[%clk 0:02:47]} 11... Ba5 {[%clk 0:02:47]} 12. f4 {[%clk 0:02:46.7]} 12... Bc7
{[%clk 0:02:45.2]} 13. e5 {[%clk 0:02:45.2]} 13... f6 {[%clk 0:02:39.7]} 14. d4
{[%clk 0:02:46]} 14... c5 {[%clk 0:02:27]} 15. Bg4 {[%clk 0:02:35.8]} 15... f5
{[%clk 0:02:26]} 16. Bh5 {[%clk 0:02:36.9]} 16... cxd4 {[%clk 0:02:23]} 17. Bxg6
{[%clk 0:02:36.6]} 17... hxg6 {[%clk 0:02:23.1]} 18. Qxg6 {[%clk 0:02:37.2]}
18... Qe8 {[%clk 0:02:17.6]} 19. Qxe8 {[%clk 0:02:38]} 19... Rfxe8 {[%clk
0:02:19.5]} 20. cxd4 {[%clk 0:02:39.2]} 20... Bb6 {[%clk 0:02:21.4]} 21. Be3
{[%clk 0:02:39.1]} 21... Nb8 {[%clk 0:02:21.6]} 22. Nc3 {[%clk 0:02:39.5]} 22...
Nc6 {[%clk 0:02:22.6]} 23. Rfd1 {[%clk 0:02:35.4]} 23... a6 {[%clk 0:02:23.5]}
24. Kf2 {[%clk 0:02:35.2]} 24... Rac8 {[%clk 0:02:23.8]} 25. Rac1 {[%clk
0:02:33.8]} 25... Na5 {[%clk 0:02:16.2]} 26. b3 {[%clk 0:02:32.6]} 26... Ba7
{[%clk 0:02:12.7]} 27. Ne2 {[%clk 0:02:32.4]} 27... Nc6 {[%clk 0:02:09]} 28. g4
{[%clk 0:02:10.2]} 28... g6 {[%clk 0:02:05.9]} 29. gxf5 {[%clk 0:02:09.9]} 29...
gxf5 {[%clk 0:02:06.9]} 30. Rg1+ {[%clk 0:02:11.2]} 30... Kf7 {[%clk 0:02:07.5]}
31. Rg5 {[%clk 0:02:12.2]} 31... Nb4 {[%clk 0:02:04.6]} 32. Rcg1 {[%clk
0:02:11.7]} 32... Rg8 {[%clk 0:02:01.6]} 33. a4 {[%clk 0:01:57.8]} 33... Nc6
{[%clk 0:01:55.4]} 34. h4 {[%clk 0:01:57.7]} 34... Rcf8 {[%clk 0:01:34.5]} 35.
h5 {[%clk 0:01:57.8]} 35... Ne7 {[%clk 0:01:34.2]} 36. h6 {[%clk 0:01:52.9]}
36... Rg6 {[%clk 0:01:35.3]} 37. Rxg6 {[%clk 0:01:46.4]} 37... Nxg6 {[%clk
0:01:36]} 38. Rc1 {[%clk 0:01:45.8]} 38... Bb6 {[%clk 0:01:35.3]} 39. b4 {[%clk
0:01:46.7]} 39... Ne7 {[%clk 0:01:25.2]} 40. Rh1 {[%clk 0:01:08.6]} 40... Rh8
{[%clk 0:01:24.9]} 41. Ng1 {[%clk 0:01:01.5]} 41... Nc6 {[%clk 0:01:20.7]} 42.
Nf3 {[%clk 0:01:02.1]} 42... Kg6 {[%clk 0:01:09]} 43. b5 {[%clk 0:01:00.6]}
43... axb5 {[%clk 0:01:05.1]} 44. axb5 {[%clk 0:01:02.5]} 44... Nd8 {[%clk
0:00:59.6]} 45. Ng5 {[%clk 0:00:50.8]} 45... Rxh6 {[%clk 0:00:58.8]} 46. Rg1
{[%clk 0:00:52.4]} 46... Rh2+ {[%clk 0:00:55.1]} 47. Kf3 {[%clk 0:00:53.7]}
47... Kh6 {[%clk 0:00:54.4]} 48. Rc1 {[%clk 0:00:52.9]} 48... Rb2 {[%clk
0:00:50.8]} 49. Rh1+ {[%clk 0:00:49.3]} 49... Kg6 {[%clk 0:00:50.3]} 50. Rh8
{[%clk 0:00:46.4]} 50... Rxb5 {[%clk 0:00:38.8]} 51. Rg8+ {[%clk 0:00:47.3]}
51... Kh6 {[%clk 0:00:40.5]} 52. Rxd8 {[%clk 0:00:48.6]} 52... Bxd8 {[%clk
0:00:42.4]} 53. Nf7+ {[%clk 0:00:50]} 53... Kg7 {[%clk 0:00:38]} 54. Nxd8 {[%clk
0:00:51.9]} 54... Rb6 {[%clk 0:00:39.2]} 55. Bf2 {[%clk 0:00:47.5]} 55... Kf8
{[%clk 0:00:38.1]} 56. Bh4 {[%clk 0:00:47.7]} 56... Ke8 {[%clk 0:00:38.6]} 57.
Ke2 {[%clk 0:00:48.4]} 57... Kd7 {[%clk 0:00:26.2]} 58. Nf7 {[%clk 0:00:48.6]}
58... Rb4 {[%clk 0:00:23.2]} 59. Kd3 {[%clk 0:00:46.6]} 59... Rb3+ {[%clk
0:00:23]} 60. Kd2 {[%clk 0:00:47.5]} 60... b5 {[%clk 0:00:22.3]} 61. Nd6 {[%clk
0:00:46.8]} 61... b4 {[%clk 0:00:22.3]} 62. Kc2 {[%clk 0:00:42.4]} 62... Rc3+
{[%clk 0:00:22]} 63. Kb2 {[%clk 0:00:42.5]} 63... Rd3 {[%clk 0:00:22.1]} 64. Nb7
{[%clk 0:00:34]} 64... Rxd4 {[%clk 0:00:14.3]} 65. Nc5+ {[%clk 0:00:35.9]} 65...
Kc6 {[%clk 0:00:15.7]} 66. Nxe6 {[%clk 0:00:37.8]} 66... Re4 {[%clk 0:00:15.2]}
67. Kb3 {[%clk 0:00:36.9]} 67... d4 {[%clk 0:00:11.8]} 68. Kxb4 {[%clk 0:00:36]}
68... Kd5 {[%clk 0:00:13.3]} 69. Nc7+ {[%clk 0:00:29.6]} 69... Kc6 {[%clk
0:00:14.7]} 70. Ne6 {[%clk 0:00:20.2]} 70... Kd5 {[%clk 0:00:15.9]} 71. Nc7+
{[%clk 0:00:16.3]} 71... Kc6 {[%clk 0:00:17.2]} 72. Bd8 {[%clk 0:00:13.7]} 72...
Rxf4 {[%clk 0:00:16.5]} 73. Kc4 {[%clk 0:00:14.3]} 73... Re4 {[%clk 0:00:16.6]}
74. e6 {[%clk 0:00:15.3]} 74... Re1 {[%clk 0:00:14]} 75. Nd5 {[%clk 0:00:11.7]}
75... Rxe6 {[%clk 0:00:13.9]} 76. Nb4+ {[%clk 0:00:11.5]} 76... Kd7 {[%clk
0:00:14.5]} 77. Bg5 {[%clk 0:00:12]} 77... Rg6 {[%clk 0:00:14.9]} 78. Bf4 {[%clk
0:00:12.6]} 78... Rg4 {[%clk 0:00:16]} 79. Bd2 {[%clk 0:00:13]} 79... d3+ {[%clk
0:00:16.4]} 80. Kxd3 {[%clk 0:00:13.9]} 80... Rxb4 {[%clk 0:00:15.7]} 81. Bxb4
{[%clk 0:00:15.8]} 81... f4 {[%clk 0:00:16.8]} 82. Ke4 {[%clk 0:00:16.9]} 82...
f3 {[%clk 0:00:18.7]} 83. Kxf3 {[%clk 0:00:18.1]} 1/2-1/2